Cogmind - Beta 10.1 @@@ ROGUE MODE // 2020.09.26 @ 11:17:55 Player: Sukhoy Result: Self-destructed Performance ------------- Evolutions (2) 1000 Regions Visited (5) 1000 Robots Destroyed (69) 345 Value Destroyed (1954) 1954 Prototype IDs (7) 140 Alien Tech Used (0) 0 Bonus (70) 70 TOTAL SCORE: 4509 Bonus ------- High Alert Combat Kills 92 Follower Combat Kills 49 Friendly Fire -71 Cogmind --------- Core Integrity 377/550 Matter 44/300 Energy 220/220 System Corruption 0% Temperature Cool (261) Movement Core (950) Ox18 Location -8/Materials Parts ------- > --- POWER (2) -------- Light Nuclear Core Light Nuclear Core > --- PROPULSION (4) --- Aerolev Unit > --- UTILITY (3) ------ High-capacity Storage Unit > --- WEAPON (2) ------- Gauss Cannon Gauss Cannon > --- INVENTORY (12) --- Improved Heat Sink Pulse Rifle Advanced Beam Cannon Gauss Cannon Grenade Launcher Peak State ------------ > --- POWER ------------ Heavy Ion Engine > --- PROPULSION ------- Improved Titanium Leg Improved Titanium Leg Improved Titanium Leg Improved Titanium Leg > --- UTILITY ---------- High-capacity Storage Unit Heavy Armor Plating > --- WEAPON ----------- Gauss Cannon Gauss Cannon > --- INVENTORY -------- Carbon-fiber Leg Hover Unit Hover Unit Improved Hover Unit Improved Heat Sink Small Storage Unit Advanced Beam Cannon Heavy Assault Rifle Heavy Assault Rifle Gauss Cannon Grenade Launcher [Rating: 36] Favorites ----------- Power Ion Engine Engine Ion Engine Power Core Light Nuclear Core Propulsion Aluminum Leg Treads Light Treads Leg Aluminum Leg Hover Unit Hover Unit Flight Unit Flight Unit Utility High-capacity Storage Unit Device Structural Scanner Storage High-capacity Storage Unit Processor Visual Processing Unit Protection Heavy Armor Plating Weapon Assault Rifle Energy Gun Beam Rifle Energy Cannon Advanced Beam Cannon Ballistic Gun Assault Rifle Ballistic Cannon Gauss Cannon Launcher Grenade Launcher Build | -11 -10 -10 -9 -9 -8 ------- Run | Scr Mat Min Mat Min Mat Slots Evolved 4 | . . . 2 . 2 Power 1 | . . . . . 1 Propulsion 2 | . . . 2 . . Utility 1 | . . . . . 1 Weapon . | . . . . . . Parts Attached 83 | 6 4 6 40 . 27 Power 13 | 1 1 1 4 . 6 Engine 9 | 1 1 . 4 . 3 Core 4 | . . 1 . . 3 Reactor . | . . . . . . Propulsion 35 | 2 . 1 20 . 12 Treads 3 | . . . 3 . . Leg 14 | 2 . 1 5 . 6 Wheel . | . . . . . . Hover 10 | . . . 4 . 6 Flight 8 | . . . 8 . . Utility 14 | 1 2 . 8 . 3 Device 4 | . 1 . 2 . 1 Storage 6 | 1 1 . 4 . . Processor 1 | . . . 1 . . Hackware . | . . . . . . Protection 3 | . . . 1 . 2 Artifact . | . . . . . . Weapon 21 | 2 1 4 8 . 6 Energy Gun 10 | 1 1 2 6 . . Energy Cannon 1 | . . . 1 . . Ballistic Gun 5 | 1 . 2 1 . 1 Ballistic Cannon 3 | . . . . . 3 Launcher 2 | . . . . . 2 Special Weapon . | . . . . . . Impact Weapon . | . . . . . . Slashing Weapon . | . . . . . . Piercing Weapon . | . . . . . . Special Melee Weapon . | . . . . . . Unidentified Prototypes 3 | . . . 1 . 2 Parts Lost 19 | . 2 3 7 . 7 Power 3 | . 1 . . . 2 Propulsion 9 | . . . 5 . 4 Utility 2 | . . . 1 . 1 Weapon 5 | . 1 3 1 . . Highest Loss Streak 4 | . 2 2 4 . 4 Average Slot Usage (%) 90 | . 99 99 90 77 79 Engine 9 | . 14 3 8 11 12 Core 4 | . . 10 2 . 2 Treads 3 | . . . 3 22 4 Leg 20 | . 28 28 14 . 19 Hover 5 | . . . 10 . 6 Flight 2 | . . . 7 . . Device 7 | . 10 14 5 11 1 Storage 12 | . 17 14 11 11 9 Protection 1 | . . . 2 . 5 Energy Gun 11 | . 14 13 12 22 4 Energy Cannon 1 | . . . 4 . . Ballistic Gun 7 | . 14 14 4 . 2 Ballistic Cannon 2 | . . . . . 10 Naked Turns . | . . . . . . Heaviest Build 71 | 13 45 42 47 46 71 Greatest Support 80 | 20 20 20 40 40 80 Greatest Overweight (x) 22 | . 2 2 4 1 22 Average Overweight (x) 1 | . 1 1 . 1 . Largest Inventory Capacity 14 | 6 14 12 12 12 12 Average Capacity 11 | 5 12 12 9 12 12 Most Carried 12 | 5 10 11 12 11 12 Average Carried 8 | 1 5 9 7 11 10 Final Capacity 12 | 6 12 12 12 12 12 Final Carried 11 | 2 10 9 11 11 5 Class Distribution -------------------- 54% | Mutant 45% | Scavenger-Mutant Dominant Class ---------------- Mutant | -10/Materials Mutant | -10/Mines Scavenger-Mutant | -9/Materials Scavenger-Mutant | -9/Mines Mutant | -8/Materials Resources | -11 -10 -10 -9 -9 -8 ----------- Run | Scr Mat Min Mat Min Mat Matter Collected 1612 | 146 220 92 457 10 687 Remotely . | . . . . . . Salvage Created 2345 | . 268 143 1102 43 789 Parts 144 | . 13 7 67 2 55 Haulers Intercepted 1 | . . . . . 1 Recyclers Shooed 1 | . . . 1 . . Parts Field Recycled . | . . . . . . Retrieved Matter . | . . . . . . Parts Self-Destructed . | . . . . . . Prevented . | . . . . . . Kills | -11 -10 -10 -9 -9 -8 ------- Run | Scr Mat Min Mat Min Mat Combat Hostiles Destroyed 47 | . 5 5 19 1 17 Guns 28 | . 5 5 12 1 5 Cannons 16 | . . . 7 . 9 AOE 3 | . . . . . 3 Classes Destroyed 10 | . 3 1 2 . 4 Worker 5 | . 1 . 1 . 3 Builder 6 | . . . . . 6 Tunneler 1 | . . . . . 1 Hauler 1 | . . . . . 1 Recycler 3 | . . . 3 . . Watcher 6 | . 1 . 3 . 2 Swarmer 11 | . . 3 6 . 2 Grunt 26 | . 5 2 5 1 13 Sentry 9 | . . . 8 . 1 Hunter 1 | . . . . . 1 Best Kill Streak 11 | . 3 3 4 1 11 Combat Bots Only 3 | . 2 3 3 1 3 Max Kills in Single Turn 5 | . 1 1 1 1 5 Gunslinging . | . . . . . . Exploded 2 | . . . . . 2 Melee . | . . . . . . Uniques/NPCs Destroyed . | . . . . . . Combat | -11 -10 -10 -9 -9 -8 -------- Run | Scr Mat Min Mat Min Mat Damage Taken 3315 | . 301 359 993 . 1662 Core 481 | . 37 71 200 . 173 Absorbed by Shields . | . . . . . . Core Remaining (%) 68 | 100 . 56 . 50 . Volleys Fired 194 | . 31 22 68 1 72 Largest 2 | . 2 2 2 2 2 Hottest 119 | . 70 70 113 119 119 Shots Fired 359 | . 59 39 122 2 137 Gun 231 | . 59 39 100 2 31 Cannon 125 | . . . 22 . 103 Launcher 3 | . . . . . 3 Special . | . . . . . . Kinetic 207 | . 30 21 33 . 123 Thermal 106 | . 6 18 69 2 11 Explosive 3 | . . . . . 3 Electromagnetic 43 | . 23 . 20 . . Robot Hit Streak 16 | . 4 7 16 5 8 Robot Miss Streak 6 | . 4 4 2 . 6 Penetration Max 1 | . . . . . 1 Secondary Targets 5 | . 1 3 1 . . Max Gunslinging Chain 1 | . 1 1 1 . . Shots Hit Robots 221 | . 34 24 89 2 72 Core Hits 121 | . 12 10 38 1 60 Critical Hits 13 | . . . 3 . 10 Critical Kills 5 | . . . 1 . 4 Critical Parts Destroyed 8 | . . . 2 . 6 Melee Attacks . | . . . . . . Impact . | . . . . . . Slashing . | . . . . . . Piercing . | . . . . . . Sneak Attacks . | . . . . . . Combat Hostiles . | . . . . . . Follow-up Attacks . | . . . . . . Damage Inflicted 4212 | . 411 240 1099 31 2431 Guns 1760 | . 411 240 769 31 309 Cannons 1825 | . . . 330 . 1495 Explosions 627 | . . . . . 627 Melee . | . . . . . . Ramming . | . . . . . . Kinetic 2177 | . 161 113 214 . 1689 Thermal 1000 | . 37 127 690 31 115 Explosive 228 | . . . . . 228 Electromagnetic 807 | . 213 . 195 . 399 Impact . | . . . . . . Slashing . | . . . . . . Piercing . | . . . . . . Highest Corruption 1 | . 1 1 . . . Average Corruption 1 | . 1 1 . . . Corruption Purged . | . . . . . . Effects 7 | . 4 3 . . . Message Errors 1 | . 1 . . . . Energy Discharges 3 | . . 3 . . . Data Loss (minor) 2 | . 2 . . . . Weapon Failures 1 | . 1 . . . . Overload Shots . | . . . . . . Overflow Damage 62 | . . . . . 62 Projectiles 52 | . . . . . 52 Explosions 10 | . . . . . 10 Melee . | . . . . . . Knockbacks 9 | . . . . . 9 Impact . | . . . . . . Kinetic 8 | . . . . . 8 Secondary 1 | . . . . . 1 Self-Inflicted Damage 10 | . . . . . 10 Shots 1 | . . . . . 1 Rammed . | . . . . . . Targets Rammed . | . . . . . . Kicked . | . . . . . . Crushed . | . . . . . . Highest Temperature 570 | . 90 128 165 21 570 Average Temperature 103 | . 38 61 37 14 172 Received Heat Transfer 1137 | . 168 93 273 . 603 Effects 21 | . . . . . 21 Shutdowns 8 | . . . . . 8 Energy Bleed 3 | . . . . . 3 Interference 2 | . . . . . 2 Matter Decay 2 | . . . . . 2 Short Circuit 1 | . . . . . 1 Damage (minor) 3 | . . . . . 3 Damage (major) 2 | . . . . . 2 Siege Activations . | . . . . . . Robots Corrupted . | . . . . . . Combat Hostiles . | . . . . . . Parts Fried 10 | . 4 . . . 6 Impact Corruptions . | . . . . . . Robots Melted . | . . . . . . Combat Hostiles . | . . . . . . Parts Melted 4 | . . 1 3 . . Heat Transferred 2419 | . 111 347 1591 74 296 Parts Sabotaged . | . . . . . . Parts Stolen . | . . . . . . Parts Stripped . | . . . . . . Power Chain Reactions . | . . . . . . Missiles Intercepted . | . . . . . . Alert | -11 -10 -10 -9 -9 -8 ------- Run | Scr Mat Min Mat Min Mat Peak Influence 565 | . 165 60 327 130 565 Initial 110 | . . 11 23 110 50 Average 150 | . 39 27 177 130 338 Maximum Alert Level 2 | . . . 1 . 2 Low Security (%) 68 | 100 100 100 55 100 21 Level 1 22 | . . . 44 . 34 Level 2 9 | . . . . . 44 Level 3 . | . . . . . . Level 4 . | . . . . . . Level 5 . | . . . . . . High Security . | . . . . . . Max Security . | . . . . . . Squads Dispatched 8 | . 1 . 2 . 5 Investigation 3 | . . . 2 . 1 Extermination . | . . . . . . Reinforcement 5 | . 1 . . . 4 Assault . | . . . . . . Garrison . | . . . . . . Intercept . | . . . . . . Construction Impeded 2 | . . . . . 2 Haulers Reinforced . | . . . . . . Stealth | -11 -10 -10 -9 -9 -8 --------- Run | Scr Mat Min Mat Min Mat Distress Signals 6 | . . . 1 . 5 Communications Jammed . | . . . . . . Distress Signals . | . . . . . . Times Spotted 68 | . 8 7 22 . 31 Peak Tracking Total 5 | . 2 3 3 . 5 Tactical Retreats 5 | . . 1 1 . 3 Traps | -11 -10 -10 -9 -9 -8 ------- Run | Scr Mat Min Mat Min Mat Traps Triggered 1 | . . . . . 1 Indirectly 1 | . . . . . 1 Trap Hack Attempts . | . . . . . . Triggered . | . . . . . . Disarmed . | . . . . . . Reprogrammed . | . . . . . . Reused . | . . . . . . Traps Extracted . | . . . . . . Installed . | . . . . . . Triggered 1 | . 1 . . . . Machines | -11 -10 -10 -9 -9 -8 ---------- Run | Scr Mat Min Mat Min Mat Machines Disabled 13 | . 3 . 1 . 9 Max in Single Turn 6 | . 1 . 1 . 6 Machines Sabotaged . | . . . . . . Garrisons Compromised . | . . . . . . Overloaded Fab Kills . | . . . . . . Fab Network Shutdowns . | . . . . . . Hacking | -11 -10 -10 -9 -9 -8 --------- Run | Scr Mat Min Mat Min Mat Machines Accessed 10 | . 3 . 4 . 3 Terminals 6 | . 3 . 2 . 1 Fabricators . | . . . . . . Repair Stations 1 | . . . 1 . . Recycling Units . | . . . . . . Scanalyzers 3 | . . . 1 . 2 Garrison Access . | . . . . . . Total Hacks 41 | . 6 . 19 . 16 Successful 34 | . 4 . 16 . 14 Failed 7 | . 2 . 3 . 2 Catastrophic 1 | . . . 1 . . Database Lockouts . | . . . . . . Manual 3 | . 3 . . . . Terminals 16 | . 6 . 6 . 4 Fabricators . | . . . . . . Repair Stations 5 | . . . 5 . . Recycling Units . | . . . . . . Scanalyzers 20 | . . . 8 . 12 Garrison Access . | . . . . . . Terminal Hacks 11 | . 4 . 4 . 3 Prototype ID Bank 2 | . . . 1 . 1 Emergency Access Points 1 | . . . . . 1 Terminal Index 1 | . 1 . . . . Locate Traps 2 | . . . 2 . . Dispatch Records 1 | . 1 . . . . Patrol Status 1 | . 1 . . . . Transport Status 1 | . 1 . . . . Hauler Manifests 2 | . . . 1 . 1 Fabricator Hacks . | . . . . . . Repair Station Hacks 4 | . . . 4 . . Scan Component 2 | . . . 2 . . Repair 2 | . . . 2 . . Recycling Unit Hacks . | . . . . . . Scanalyzer 19 | . . . 8 . 11 Insert Component 8 | . . . 3 . 5 Analyze 11 | . . . 5 . 6 Garrison Access Hacks . | . . . . . . Unauthorized Hacks . | . . . . . . Terminals . | . . . . . . Fabricators . | . . . . . . Repair Stations . | . . . . . . Recycling Units . | . . . . . . Scanalyzers . | . . . . . . Garrison Access . | . . . . . . Data Cores Recovered . | . . . . . . Used . | . . . . . . Hacking Detections 9 | . 3 . 4 . 2 Full Trace Events 4 | . 1 . 2 . 1 Feedback Events 1 | . 1 . . . . Corruption 1 | . 1 . . . . Feedback Blocked . | . . . . . . Robot Schematics Acquired . | . . . . . . Robots Built . | . . . . . . Matter . | . . . . . . Time . | . . . . . . Total Robot Build Rating . | . . . . . . Part Schematics Acquired 8 | . . . 3 . 5 Parts Built . | . . . . . . Matter . | . . . . . . Time . | . . . . . . Total Part Build Rating . | . . . . . . Parts Repaired 2 | . . . 2 . . Time 52 | . . . 52 . . Parts Recycled . | . . . . . . Recycled Matter . | . . . . . . Retrieved Matter . | . . . . . . Retrieved Components . | . . . . . . Parts Scanalyzed 8 | . . . 3 . 5 Part Schematics Acquired 8 | . . . 3 . 5 Parts Damaged . | . . . . . . Bothacking | -11 -10 -10 -9 -9 -8 ------------ Run | Scr Mat Min Mat Min Mat Used RIF Installer . | . . . . . . Robots Hacked . | . . . . . . Non-combat . | . . . . . . Combat . | . . . . . . Robot Hacks Applied . | . . . . . . Relay Couplers Released . | . . . . . . Robots Rewired . | . . . . . . Allies Hacked . | . . . . . . Hacks Repelled . | . . . . . . Allies | -11 -10 -10 -9 -9 -8 -------- Run | Scr Mat Min Mat Min Mat Total Allies 4 | . . . . 4 . Largest Group 4 | . . . . 4 4 Highest-Rated Group 71 | . . . . 71 71 Highest-Rated Ally 31 | . . . . 31 31 Total Orders . | . . . . . . Ally Attacks 26 | . . . . . 26 Total Damage 309 | . . . . . 309 Kills 4 | . . . . . 4 Allies Corrupted . | . . . . . . Allies Melted . | . . . . . . Intel | -11 -10 -10 -9 -9 -8 ------- Run | Scr Mat Min Mat Min Mat Robot Analysis Total . | . . . . . . Derelict Logs Recovered 2 | . . 2 . . . Drone Launches . | . . . . . . Drone Recoveries . | . . . . . . Exploration | -11 -10 -10 -9 -9 -8 ------------- Run | Scr Mat Min Mat Min Mat Turns Passed 3304 | 65 506 747 1147 145 694 Spaces Moved 1700 | 48 219 409 679 78 267 Core 9 | 8 . . . . 1 Treads 263 | . . . 102 78 83 Legs 1020 | 40 219 409 208 . 144 Wheels . | . . . . . . Hover 312 | . . . 273 . 39 Flight 96 | . . . 96 . . Fastest Speed 31 | 50 120 150 31 180 103 Average Speed 144 | 108 178 161 120 180 146 Slowest Speed 1150 | 120 180 180 357 180 1150 Overloaded Moves . | . . . . . . Propulsion Burnouts . | . . . . . . Robots Hopped . | . . . . . . Cave-ins Triggered . | . . . . . . Exploration Rate (%) 37 | 3 38 81 46 28 28 Regions Visited 5 Branch Regions 2 Pre-discovered Areas 3 | . . 3 . . . Known Exits Taken . | . . . . . . Unknown Exits Taken 5 | 1 1 1 1 1 . Scrap Searched 2 | . . 2 . . . Spaces Dug 2 | . . . . . 2 Terrain Destroyed 68 | . . . . . 68 Melee . | . . . . . . Projectile 48 | . . . . . 48 AOE 20 | . . . . . 20 Terrain Rammed . | . . . . . . Walls Destroyed . | . . . . . . Machines Disabled . | . . . . . . Actions | -11 -10 -10 -9 -9 -8 --------- Run | Scr Mat Min Mat Min Mat Total 2202 | 61 275 458 894 81 433 Wait 93 | . 11 14 36 3 29 Move 1695 | 47 218 408 678 77 267 Hop . | . . . . . . Pick Up 79 | 8 11 5 38 . 17 Fast Attach 3 | . . . 1 . 2 Attach 33 | 6 3 3 12 . 9 Detach 3 | . . . 2 . 1 Swap 47 | . 1 3 27 . 16 Drop 55 | . . 3 32 . 20 Fire 194 | . 31 22 68 1 72 Melee . | . . . . . . Ram . | . . . . . . Kick . | . . . . . . Crush . | . . . . . . Escape Stasis . | . . . . . . Rewire . | . . . . . . Trap . | . . . . . . Miscellaneous . | . . . . . . Route ------- -11/Scrapyard -10/Materials (discovered 2 exits: *Mat / [*Min]) -10/Mines -9/Materials (discovered 3 exits: *Mat / [*Min] / [*Sto]) -9/Mines -8/Materials History --------- Turn | Location | Event 3 | -11/Scrapyard | Discovered new exit (range 15) 66 | -11/Scrapyard | Entered Materials 282 | -10/Materials | Discovered new exit (range 9) 306 | -10/Materials | Build established: Mutant 515 | -10/Materials | Discovered new exit (range 15) 572 | -10/Materials | Entered Mines 606 | -10/Mines | Learned location of Storage (-9) 836 | -10/Mines | Learned location of Zion (-7) 1232 | -10/Mines | Discovered new exit (range 13) 1319 | -10/Mines | Entered Materials 1319 | -9/Materials | Evolved 2 slots: Propulsion x2 1467 | -9/Materials | Repaired Hover Unit 1631 | -9/Materials | Build established: Scavenger-Mutant 1858 | -9/Materials | Discovered new exit (range 5) 2174 | -9/Materials | Repaired Hover Unit 2205 | -9/Materials | Discovered new exit (range 5) 2260 | -9/Materials | Lost 4 parts (2n1u1w) 2418 | -9/Materials | Discovered new exit (range 14) 2466 | -9/Materials | Entered Mines 2477 | -9/Mines | Assisted by bots powering up and referring to "LRC-V3" 2552 | -9/Mines | Discovered new exit (range 13) 2611 | -9/Mines | Entered Materials 2611 | -8/Materials | Accompanied by 4 allies 2611 | -8/Materials | Evolved 2 slots: Power x1, Utility x1 2616 | -8/Materials | Led the pair of lost Derelicts to an unsafe place 3083 | -8/Materials | Build established: Mutant 3305 | -8/Materials | Self-destructed Last Messages --------------- Imp. Hover Unit destroyed. Overheating: Lgt. Nuclear Core damaged (-8). Overheating: Aerolev Unit damaged (-29). K-01 Serf collects debris. Overheating: Matter decay (-11). Power failure, Lgt. Nuclear Core shutdown. K-01 Serf collects debris. K-01 Serf suffers critical hit. K-01 Serf destroyed. Power failure, Lgt. Nuclear Core shutdown. Aerolev Unit permanently disabled. Overheating: Short circuit. Hover Unit destroyed. Power failure, Lgt. Nuclear Core shutdown. Overheating: Energy bleed (-52). Power failure, Lgt. Nuclear Core shutdown. Hover Unit destroyed. Acquired 1 matter. Acquired 23 matter. Aerolev Unit destroyed. Map ----- +----------------------------------------------------+ | ?????????????????????????????????????????????????? | | ?????????????????????????????????????????????????? | | ?????????????????????????????????????????????????? | | ?????????????????????????????????????????????????? | | ?????????????????????????????????????????????????? | | ?????????????????????????????????????????????????? | | ????????????????????????? ?????????????????????? | | ????????????????????????# ?????????????????????? | | ????????????????????????# ?????????????????????? | | ????????????????????????# ?????????????????????? | | ????????????????????????# ?????????????????????? | | ????????????????????????# #????????????????????? | | ????????????????????????# #????????????????????? | | ????????????????????????# #????????????????????? | | ????????????????????????# ###########??????????? | | ????????????????????????# # #??????????? | | ??????????????" ????????# + " #??????????? | | ?????????????"" ??? ????# # T #??????????? | | ?????????????? ?? ????# # """ ##?????????? | | ??????????????? !?? ????# # """ +? ????????? | | ??????????#########+##### + """ * #?# ???????? | | ???????? a a # %*= #?# ??????? | | ????????? # ====#?# ?????? | | ????????? ^ ############# #????? | | ????? ?? ############# ###+# | | ????? ? " =@=### = # | | ???? """ """ ! %= #?# [ # | | ???? """ """ g ### # | | ??? """ """ !%! # # ###/# | | ??? =%^ ! != + "S """ #?????# | | ??? # """ """ #?????# "" | | ????# ;;##;; ### "" """ #?????# ""S | | ????# ##"#;# #?# #?????# "" | | ????# # # #?###########?????# | | ????# # # #?????????????????# | | ????# # # #?????????????????# | | | ????# ^ # # ##????????????#####+### | | ????# # [ # ###??????????## [ #? | | ???## = # # #??????????## !! #? | | ???## %*% + = [# #???????????## !%"""#? | | ??### = # # ##???????????##[!["""#? | | ??# #^ = ! # !# #????????????##== """#? | | ??# " ! ###### #????????????##%=* #? | | ?# " * != * |#????????????##[! """#? | | """## * [ * =!=! ![ !%#?????????????#% = ""#? | | =* [ %[ ! !#?????????????#= ""#? | | ##"### #######"""#+##"% #?????????????# % #? | | ?#??#" #??# ! ##! #?????????????# % #? | | ?? # #??# ## #????? ??????#####+##? | | """ # #??#! ## #???? #### # | +----------------------------------------------------+ Best States ------------- Heat Dissipation 45 Energy Generation 23 Energy Capacity 430 Matter Stores 300 Matter Capacity 300 Sight Range 18 Terrain Scan Density 10 Armor Coverage 600 Propulsion Shielding 66 Evasion (%) 63 Recoil Reduction 2 Item Schematics ----------------- Adv. Beam Cannon | -9/Materials | Scanalyzed EM Shotgun | -9/Materials | Scanalyzed Hcp. Storage Unit | -9/Materials | Scanalyzed Hover Unit | -8/Materials | Scanalyzed Electrolaser | -8/Materials | Scanalyzed Aerolev Unit | -8/Materials | Scanalyzed Carbon-fiber Leg | -8/Materials | Scanalyzed Imp. Hover Unit | -8/Materials | Scanalyzed Robot Schematics ------------------ None Fabricated ------------ Nothing Alien Tech Used ----------------- None Achievements -------------- None Challenges ------------ None Game ------ Seed DisposableLinearBroadsword Manual? 0 Play Time 00:48:58 Cumulative 9.7 hours Start 2020.09.26 @ 10:23:52 End 2020.09.26 @ 11:17:55 Sessions 1 Manual Loads 0 Difficulty Rogue Special Mode None Game No. 8 Rogue 8 Adventurer 0 Explorer 0 Win Type - Total 0 Types 0/0/0/0/0/0/0/0/0 Lore% 3 Gallery% 16 Achievement% 14 Wizard Run 0 Options --------- ASCII 0 Keyboard 0 Movement Mouse Keybinds 0 Fullscreen 1 Font 18/TerminusBold Map View 76x50 Tactical HUD 0 Map Filters NONE Filters NONE Steam 1 RUN: e27a43c5-7692-46b5-aad8-4a5da4d5793a